[Event "Live Chess"]
[Site "Chess.com"]
[Date "2023.05.20"]
[Round "-"]
[White "Andysav3"]
[Black "MaximKhimchenko"]
[Result "1-0"]
[WhiteElo "1690"]
[BlackElo "1376"]
[TimeControl "300"]
[EndTime "9:24:40 PDT"]
[Termination "Andysav3 won by resignation"]

1. e4 {[%clk 0:04:58.4]} 1... c5 {[%clk 0:04:56.8]} 2. c3 {[%clk 0:04:56.2]}
2... Nc6 {[%clk 0:04:54.9]} 3. d4 {[%clk 0:04:54.4]} 3... cxd4 {[%clk
0:04:54.4]} 4. cxd4 {[%clk 0:04:52.7]} 4... d5 {[%clk 0:04:54.3]} 5. exd5 {[%clk
0:04:51.5]} 5... Qxd5 {[%clk 0:04:53.7]} 6. Nf3 {[%clk 0:04:49.7]} 6... Bg4
{[%clk 0:04:50.3]} 7. Nc3 {[%clk 0:04:46.5]} 7... Qa5 {[%clk 0:04:48.3]} 8. Be3
{[%clk 0:03:52.6]} 8... Rc8 {[%clk 0:04:37.8]} 9. h3 {[%clk 0:03:48.3]} 9... Bd7
{[%clk 0:04:31.7]} 10. Bd3 {[%clk 0:03:41.8]} 10... e6 {[%clk 0:04:21.5]} 11. a3
{[%clk 0:03:38.8]} 11... Qc7 {[%clk 0:04:16.8]} 12. O-O {[%clk 0:03:35.8]} 12...
Bd6 {[%clk 0:04:15.1]} 13. Rc1 {[%clk 0:03:24.8]} 13... h5 {[%clk 0:04:10.8]}
14. Ne4 {[%clk 0:03:05.7]} 14... Qb8 {[%clk 0:04:02]} 15. b4 {[%clk 0:02:58.7]}
15... f5 {[%clk 0:03:57.6]} 16. Nxd6+ {[%clk 0:02:40.2]} 16... Qxd6 {[%clk
0:03:52]} 17. Qd2 {[%clk 0:02:39.3]} 17... Nf6 {[%clk 0:03:47.6]} 18. Bf4 {[%clk
0:02:34.8]} 18... Qe7 {[%clk 0:03:36.2]} 19. Rfe1 {[%clk 0:02:31.1]} 19... Kf7
{[%clk 0:03:30.9]} 20. Bxf5 {[%clk 0:02:27.7]} 1-0

[Event "Live Chess"]
[Site "Chess.com"]
[Date "2023.05.20"]
[Round "-"]
[White "YF22Raptor"]
[Black "Enhard"]
[Result "0-1"]
[WhiteElo "1022"]
[BlackElo "1387"]
[TimeControl "300"]
[EndTime "9:24:44 PDT"]
[Termination "Enhard won by checkmate"]

1. e4 {[%clk 0:04:58.5]} 1... c6 {[%clk 0:04:58.7]} 2. d4 {[%clk 0:04:56.4]}
2... d5 {[%clk 0:04:58.2]} 3. e5 {[%clk 0:04:49.5]} 3... Bf5 {[%clk 0:04:57]} 4.
Bd3 {[%clk 0:04:44.8]} 4... Bxd3 {[%clk 0:04:55.3]} 5. Qxd3 {[%clk 0:04:44.4]}
5... e6 {[%clk 0:04:54.4]} 6. c3 {[%clk 0:04:42.5]} 6... h6 {[%clk 0:04:49.9]}
7. Nf3 {[%clk 0:04:41.9]} 7... Ne7 {[%clk 0:04:48.8]} 8. Be3 {[%clk 0:04:40.7]}
8... Nf5 {[%clk 0:04:47.5]} 9. Nbd2 {[%clk 0:04:39.2]} 9... Nxe3 {[%clk
0:04:46]} 10. Qxe3 {[%clk 0:04:38]} 10... Be7 {[%clk 0:04:45.3]} 11. O-O {[%clk
0:04:29.3]} 11... Nd7 {[%clk 0:04:43.8]} 12. b4 {[%clk 0:04:14.5]} 12... b6
{[%clk 0:04:39.9]} 13. a4 {[%clk 0:04:10.3]} 13... c5 {[%clk 0:04:38.5]} 14.
Rab1 {[%clk 0:04:03.5]} 14... O-O {[%clk 0:04:32.9]} 15. b5 {[%clk 0:03:57.9]}
15... cxd4 {[%clk 0:04:30.2]} 16. cxd4 {[%clk 0:03:56.3]} 16... Rc8 {[%clk
0:04:25.8]} 17. Rfc1 {[%clk 0:03:53.4]} 17... Rxc1+ {[%clk 0:04:05.3]} 18. Rxc1
{[%clk 0:03:51.9]} 18... Bb4 {[%clk 0:03:56.1]} 19. Rb1 {[%clk 0:03:45.9]} 19...
Bxd2 {[%clk 0:03:53.8]} 20. Qxd2 {[%clk 0:03:44.7]} 20... f6 {[%clk 0:03:36.9]}
21. exf6 {[%clk 0:03:29.8]} 21... Nxf6 {[%clk 0:03:31.6]} 22. h3 {[%clk
0:03:27.6]} 22... Ne4 {[%clk 0:03:28.3]} 23. Qd3 {[%clk 0:03:25.5]} 23... Qf6
{[%clk 0:03:26.2]} 24. Rc1 {[%clk 0:03:23.4]} 24... Qe7 {[%clk 0:03:09.6]} 25.
Rc2 {[%clk 0:03:13.6]} 25... Qb4 {[%clk 0:03:01.2]} 26. Ra2 {[%clk 0:03:03.3]}
26... Rc8 {[%clk 0:02:55.5]} 27. Kh2 {[%clk 0:02:58.4]} 27... Qd6+ {[%clk
0:02:52.4]} 28. g3 {[%clk 0:02:54.9]} 28... Qf8 {[%clk 0:02:42.3]} 29. Kg2
{[%clk 0:02:48.5]} 29... Rc3 {[%clk 0:02:40]} 30. Qe2 {[%clk 0:02:44.2]} 30...
Qf6 {[%clk 0:02:25.5]} 31. Ne5 {[%clk 0:02:31.4]} 31... Ng5 {[%clk 0:02:08.9]}
32. Nd7 {[%clk 0:02:22.1]} 32... Qe7 {[%clk 0:02:02.5]} 33. Ne5 {[%clk
0:02:20.5]} 33... Qf8 {[%clk 0:02:00.7]} 34. f4 {[%clk 0:02:13.2]} 34... Ne4
{[%clk 0:01:59.1]} 35. Rc2 {[%clk 0:02:03.9]} 35... Rxg3+ {[%clk 0:01:56.6]} 36.
Kh2 {[%clk 0:02:01.6]} 36... Qxf4 {[%clk 0:01:54]} 37. Rc8+ {[%clk 0:01:41.9]}
37... Kh7 {[%clk 0:01:52.5]} 38. Kh1 {[%clk 0:01:04.3]} 38... Rxh3+ {[%clk
0:01:48.5]} 39. Kg2 {[%clk 0:01:01.3]} 39... Qg3+ {[%clk 0:01:42.9]} 40. Kf1
{[%clk 0:00:59.8]} 40... Rh1# {[%clk 0:01:41.4]} 0-1

[Event "Live Chess"]
[Site "Chess.com"]
[Date "2023.05.20"]
[Round "-"]
[White "ConorMaclaud"]
[Black "BearFromUkraine"]
[Result "1-0"]
[WhiteElo "2125"]
[BlackElo "1187"]
[TimeControl "300"]
[EndTime "9:24:44 PDT"]
[Termination "ConorMaclaud won by resignation"]

1. Nf3 {[%clk 0:04:58.1]} 1... Nc6 {[%clk 0:04:57.2]} 2. d4 {[%clk 0:04:57.2]}
2... d5 {[%clk 0:04:56.2]} 3. c4 {[%clk 0:04:56.8]} 3... e6 {[%clk 0:04:54.6]}
4. Nc3 {[%clk 0:04:55.3]} 4... Nf6 {[%clk 0:04:52.9]} 5. Bg5 {[%clk 0:04:54.4]}
5... Be7 {[%clk 0:04:50.7]} 6. e3 {[%clk 0:04:53]} 6... O-O {[%clk 0:04:47.9]}
7. Bd3 {[%clk 0:04:51.1]} 7... h6 {[%clk 0:04:43.9]} 8. Bh4 {[%clk 0:04:50]}
8... Bd7 {[%clk 0:04:25.6]} 9. O-O {[%clk 0:04:45.2]} 9... dxc4 {[%clk 0:04:10]}
10. Bxc4 {[%clk 0:04:42]} 10... a6 {[%clk 0:04:05.6]} 11. Bd3 {[%clk 0:04:40.2]}
11... Nd5 {[%clk 0:03:38.4]} 12. Bxe7 {[%clk 0:04:37]} 12... Qxe7 {[%clk
0:03:32.9]} 13. Nxd5 {[%clk 0:04:34.4]} 13... exd5 {[%clk 0:03:32.3]} 14. Rc1
{[%clk 0:04:33.2]} 14... Bg4 {[%clk 0:03:28.5]} 15. h3 {[%clk 0:04:31.3]} 15...
Bxf3 {[%clk 0:03:25.4]} 16. Qxf3 {[%clk 0:04:31.2]} 16... Qf6 {[%clk 0:03:20.9]}
17. Qxd5 {[%clk 0:04:28.9]} 17... Rad8 {[%clk 0:03:12]} 18. Qe4 {[%clk 0:04:27]}
18... g6 {[%clk 0:02:50.2]} 19. Bxa6 {[%clk 0:04:18]} 19... Nxd4 {[%clk
0:02:42.7]} 20. exd4 {[%clk 0:03:59.7]} 20... Qxd4 {[%clk 0:02:31.7]} 21. Qxd4
{[%clk 0:03:53.7]} 21... Rxd4 {[%clk 0:02:30]} 22. Bxb7 {[%clk 0:03:53.3]} 1-0

[Event "Live Chess"]
[Site "Chess.com"]
[Date "2023.05.20"]
[Round "-"]
[White "flyingpuffins"]
[Black "DianaSpencer1"]
[Result "1-0"]
[WhiteElo "1983"]
[BlackElo "562"]
[TimeControl "300"]
[EndTime "9:24:45 PDT"]
[Termination "flyingpuffins won by resignation"]

1. d4 {[%clk 0:04:58.7]} 1... d5 {[%clk 0:04:57.1]} 2. e4 {[%clk 0:04:57.4]}
2... Nf6 {[%clk 0:04:50.5]} 3. e5 {[%clk 0:04:47.5]} 3... Ne4 {[%clk 0:04:37.8]}
4. Nd2 {[%clk 0:04:43.7]} 4... Nc5 {[%clk 0:04:33.6]} 5. dxc5 {[%clk 0:04:42.5]}
5... Nc6 {[%clk 0:04:18.6]} 6. Ngf3 {[%clk 0:04:40.9]} 6... f6 {[%clk
0:04:06.5]} 7. exf6 {[%clk 0:04:29.5]} 7... exf6 {[%clk 0:03:58.7]} 8. Bd3
{[%clk 0:04:28.2]} 8... Be6 {[%clk 0:03:48.1]} 9. O-O {[%clk 0:04:24.1]} 9...
Bxc5 {[%clk 0:03:31.9]} 10. Re1 {[%clk 0:04:23]} 10... Qe7 {[%clk 0:03:22.9]}
11. Bf5 {[%clk 0:04:20.3]} 11... Bxf5 {[%clk 0:03:15.6]} 12. Rxe7+ {[%clk
0:04:20.2]} 12... Kxe7 {[%clk 0:03:13.5]} 13. Nb3 {[%clk 0:04:19.8]} 13... Nb4
{[%clk 0:02:29.1]} 14. Nxc5 {[%clk 0:04:17.5]} 14... Nxa2 {[%clk 0:02:21.7]} 15.
Rxa2 {[%clk 0:04:16.1]} 15... Rhd8 {[%clk 0:02:12.1]} 16. Qe2+ {[%clk
0:04:14.1]} 16... Kf7 {[%clk 0:02:08.5]} 17. Bf4 {[%clk 0:04:09.7]} 17... Re8
{[%clk 0:02:00.2]} 18. Qd2 {[%clk 0:04:05.9]} 18... g5 {[%clk 0:01:41.7]} 19.
Qxd5+ {[%clk 0:04:01.8]} 19... Re6 {[%clk 0:01:23.7]} 20. Bxc7 {[%clk
0:03:54.2]} 20... Bxc2 {[%clk 0:01:12]} 21. Qxe6+ {[%clk 0:03:52.2]} 21... Kg6
{[%clk 0:00:55]} 22. h4 {[%clk 0:03:49.4]} 22... Re8 {[%clk 0:00:53.4]} 23.
Qxe8+ {[%clk 0:03:46.6]} 1-0

[Event "Live Chess"]
[Site "Chess.com"]
[Date "2023.05.20"]
[Round "-"]
[White "chrisbradgate"]
[Black "seasidecastle27"]
[Result "0-1"]
[WhiteElo "828"]
[BlackElo "1902"]
[TimeControl "300"]
[EndTime "9:24:53 PDT"]
[Termination "seasidecastle27 won by checkmate"]

1. d4 {[%clk 0:04:58.5]} 1... e6 {[%clk 0:04:58.9]} 2. Bf4 {[%clk 0:04:57]} 2...
d5 {[%clk 0:04:57.7]} 3. e3 {[%clk 0:04:55.1]} 3... Bd6 {[%clk 0:04:56.7]} 4.
Bg3 {[%clk 0:04:52.8]} 4... Nf6 {[%clk 0:04:53.7]} 5. c3 {[%clk 0:04:51.1]} 5...
Bxg3 {[%clk 0:04:48.4]} 6. hxg3 {[%clk 0:04:49.2]} 6... Nbd7 {[%clk 0:04:45.8]}
7. Bd3 {[%clk 0:04:39.4]} 7... Qe7 {[%clk 0:04:44.5]} 8. Nd2 {[%clk 0:04:31.3]}
8... e5 {[%clk 0:04:43.1]} 9. Qc2 {[%clk 0:04:20.6]} 9... e4 {[%clk 0:04:38.2]}
10. Bb5 {[%clk 0:04:10.5]} 10... c6 {[%clk 0:04:35.8]} 11. Ba4 {[%clk
0:04:08.6]} 11... b5 {[%clk 0:04:32.4]} 12. Bb3 {[%clk 0:04:05.8]} 12... a5
{[%clk 0:04:29.8]} 13. a3 {[%clk 0:04:04.4]} 13... a4 {[%clk 0:04:25]} 14. Ba2
{[%clk 0:04:03.3]} 14... Nb6 {[%clk 0:04:22.7]} 15. O-O-O {[%clk 0:03:55.3]}
15... Bg4 {[%clk 0:04:16]} 16. Re1 {[%clk 0:03:52.5]} 16... Nc4 {[%clk
0:04:02.1]} 17. Nxc4 {[%clk 0:03:50.2]} 17... bxc4 {[%clk 0:03:59.9]} 18. f3
{[%clk 0:03:38.7]} 18... exf3 {[%clk 0:03:53.5]} 19. gxf3 {[%clk 0:03:36.3]}
19... Bh5 {[%clk 0:03:46.1]} 20. g4 {[%clk 0:03:29.8]} 20... Bg6 {[%clk
0:03:43.7]} 21. Qh2 {[%clk 0:03:11.8]} 21... O-O {[%clk 0:03:37.5]} 22. Nh3
{[%clk 0:02:56.9]} 22... Rfb8 {[%clk 0:03:32.8]} 23. Re2 {[%clk 0:02:47.9]}
23... Ra7 {[%clk 0:03:21.9]} 24. Nf4 {[%clk 0:02:35.7]} 24... Rab7 {[%clk
0:03:05]} 25. Nxg6 {[%clk 0:02:26.7]} 25... fxg6 {[%clk 0:02:56.7]} 26. g5
{[%clk 0:02:20.6]} 26... Nh5 {[%clk 0:02:53.7]} 27. Rg1 {[%clk 0:01:56.3]} 27...
Rf8 {[%clk 0:02:49.8]} 28. f4 {[%clk 0:01:50.3]} 28... Qe8 {[%clk 0:02:33.2]}
29. Qg2 {[%clk 0:01:41.9]} 29... Re7 {[%clk 0:02:30.1]} 30. Qh3 {[%clk
0:01:30.7]} 30... Nxf4 {[%clk 0:02:23.9]} 31. exf4 {[%clk 0:01:13.2]} 31... Rxe2
{[%clk 0:02:21.5]} 32. Qg3 {[%clk 0:00:58.8]} 32... Qe3+ {[%clk 0:02:17.2]} 33.
Qxe3 {[%clk 0:00:54.3]} 33... Rxe3 {[%clk 0:02:15.4]} 34. Rd1 {[%clk 0:00:49.2]}
34... Rxf4 {[%clk 0:02:12.1]} 35. Bb1 {[%clk 0:00:47.1]} 35... Rf2 {[%clk
0:02:08.4]} 36. Rd2 {[%clk 0:00:32.4]} 36... Re1+ {[%clk 0:02:05.9]} 37. Kc2
{[%clk 0:00:30.7]} 37... Rff1 {[%clk 0:02:02.4]} 38. Ba2 {[%clk 0:00:28.3]}
38... Rc1# {[%clk 0:02:00.7]} 0-1

[Event "Live Chess"]
[Site "Chess.com"]
[Date "2023.05.20"]
[Round "-"]
[White "Inglaterra"]
[Black "JormaIbo"]
[Result "1-0"]
[WhiteElo "2083"]
[BlackElo "428"]
[TimeControl "300"]
[EndTime "9:24:53 PDT"]
[Termination "Inglaterra won by checkmate"]

1. e4 {[%clk 0:04:58.4]} 1... e5 {[%clk 0:04:58.8]} 2. Nf3 {[%clk 0:04:56.6]}
2... Nc6 {[%clk 0:04:57.2]} 3. Bc4 {[%clk 0:04:55.5]} 3... Bc5 {[%clk
0:04:56.2]} 4. d3 {[%clk 0:04:53.2]} 4... Nf6 {[%clk 0:04:51.7]} 5. c3 {[%clk
0:04:51.4]} 5... d6 {[%clk 0:04:45.8]} 6. Bg5 {[%clk 0:04:48]} 6... h6 {[%clk
0:04:40.9]} 7. Bh4 {[%clk 0:04:46.5]} 7... Bg4 {[%clk 0:04:34.6]} 8. h3 {[%clk
0:04:41.1]} 8... Bd7 {[%clk 0:04:05.1]} 9. Nbd2 {[%clk 0:04:12.5]} 9... O-O
{[%clk 0:03:58.3]} 10. a3 {[%clk 0:04:08.5]} 10... Na5 {[%clk 0:03:43.8]} 11.
Ba2 {[%clk 0:04:06]} 11... c6 {[%clk 0:03:11.7]} 12. b4 {[%clk 0:04:02.8]} 12...
Bb6 {[%clk 0:02:55.2]} 13. bxa5 {[%clk 0:03:58.1]} 13... Bxa5 {[%clk 0:02:54.5]}
14. Qc2 {[%clk 0:03:51.6]} 14... d5 {[%clk 0:02:41.6]} 15. Nxe5 {[%clk
0:03:41.9]} 15... Be6 {[%clk 0:02:25.8]} 16. O-O {[%clk 0:03:32]} 16... Bc7
{[%clk 0:02:19.7]} 17. d4 {[%clk 0:03:21.9]} 17... Bxe5 {[%clk 0:01:51.4]} 18.
dxe5 {[%clk 0:03:21.8]} 18... g5 {[%clk 0:01:38.2]} 19. exf6 {[%clk 0:03:16.1]}
19... gxh4 {[%clk 0:01:35.5]} 20. e5 {[%clk 0:03:11.7]} 20... Qc7 {[%clk
0:01:27.9]} 21. Bb1 {[%clk 0:03:08.4]} 21... Qxe5 {[%clk 0:00:59.7]} 22. Qh7#
{[%clk 0:03:05.4]} 1-0

[Event "Live Chess"]
[Site "Chess.com"]
[Date "2023.05.20"]
[Round "-"]
[White "alexlines8"]
[Black "JoeyCage"]
[Result "0-1"]
[WhiteElo "1271"]
[BlackElo "2313"]
[TimeControl "300"]
[EndTime "9:25:04 PDT"]
[Termination "JoeyCage won on time"]

1. e4 {[%clk 0:04:58.4]} 1... c5 {[%clk 0:04:56.2]} 2. c3 {[%clk 0:04:54.5]}
2... Nf6 {[%clk 0:04:53.1]} 3. f3 {[%clk 0:04:45.6]} 3... Nc6 {[%clk 0:04:51.4]}
4. d4 {[%clk 0:04:43.1]} 4... cxd4 {[%clk 0:04:50]} 5. cxd4 {[%clk 0:04:40.9]}
5... e6 {[%clk 0:04:48]} 6. Nc3 {[%clk 0:04:37.1]} 6... a6 {[%clk 0:04:46.6]} 7.
a4 {[%clk 0:04:25.3]} 7... Qb6 {[%clk 0:04:43.1]} 8. Nge2 {[%clk 0:04:07.8]}
8... Bb4 {[%clk 0:04:30.6]} 9. Be3 {[%clk 0:03:47.3]} 9... d5 {[%clk 0:04:25.5]}
10. e5 {[%clk 0:03:39]} 10... Nd7 {[%clk 0:04:21.5]} 11. Rb1 {[%clk 0:03:11.3]}
11... Ndxe5 {[%clk 0:04:14.4]} 12. Nf4 {[%clk 0:02:23.1]} 12... Na5 {[%clk
0:03:57.4]} 13. Be2 {[%clk 0:02:00.1]} 13... Nec4 {[%clk 0:03:55]} 14. Bxc4
{[%clk 0:01:51]} 14... Nxc4 {[%clk 0:03:53.1]} 15. Qd3 {[%clk 0:01:39]} 15...
Nxe3 {[%clk 0:03:40.8]} 16. Qxe3 {[%clk 0:01:32]} 16... Bxc3+ {[%clk 0:03:30.2]}
17. Qxc3 {[%clk 0:01:29.7]} 17... O-O {[%clk 0:03:25.6]} 18. O-O {[%clk
0:01:26.3]} 18... Bd7 {[%clk 0:03:20.6]} 19. b3 {[%clk 0:01:16.6]} 19... Bc6
{[%clk 0:03:14.1]} 20. Nd3 {[%clk 0:01:10.8]} 20... Rac8 {[%clk 0:03:10.2]} 21.
Qb2 {[%clk 0:00:58.9]} 21... f6 {[%clk 0:03:05.6]} 22. Nc5 {[%clk 0:00:55.9]}
22... e5 {[%clk 0:03:02.5]} 23. Ne6 {[%clk 0:00:50.2]} 23... Rfe8 {[%clk
0:02:57.5]} 24. Nc5 {[%clk 0:00:47.4]} 24... exd4 {[%clk 0:02:51.6]} 25. Qxd4
{[%clk 0:00:45.6]} 25... Qc7 {[%clk 0:02:32]} 26. Rfe1 {[%clk 0:00:38.6]} 26...
Qd6 {[%clk 0:02:30.4]} 27. Rxe8+ {[%clk 0:00:34.3]} 27... Rxe8 {[%clk 0:02:29]}
28. b4 {[%clk 0:00:30.2]} 28... Qe5 {[%clk 0:02:26.1]} 29. Qxe5 {[%clk
0:00:27.7]} 29... fxe5 {[%clk 0:02:20.1]} 30. Kf2 {[%clk 0:00:26.5]} 30... d4
{[%clk 0:02:16.4]} 31. Rd1 {[%clk 0:00:24.2]} 31... Kf7 {[%clk 0:02:13.5]} 32.
g4 {[%clk 0:00:22.7]} 32... b6 {[%clk 0:02:10.4]} 33. Nxa6 {[%clk 0:00:20.7]}
33... Bxa4 {[%clk 0:02:09.3]} 34. Ra1 {[%clk 0:00:17.7]} 34... Bb5 {[%clk
0:02:08]} 35. Nc7 {[%clk 0:00:15.2]} 35... Bc6 {[%clk 0:02:02.7]} 36. Nxe8
{[%clk 0:00:14.3]} 36... Bxe8 {[%clk 0:02:01.7]} 37. Re1 {[%clk 0:00:12.5]}
37... Kf6 {[%clk 0:01:58.8]} 38. h4 {[%clk 0:00:10.4]} 38... Bc6 {[%clk
0:01:57.2]} 39. Kg3 {[%clk 0:00:09.6]} 39... b5 {[%clk 0:01:55.9]} 40. Rd1
{[%clk 0:00:08.4]} 40... Ke6 {[%clk 0:01:54]} 41. f4 {[%clk 0:00:06.7]} 41...
Kd5 {[%clk 0:01:51.6]} 42. fxe5 {[%clk 0:00:05.6]} 42... Kxe5 {[%clk 0:01:50.8]}
43. g5 {[%clk 0:00:03.8]} 43... Be4 {[%clk 0:01:49.7]} 44. Kg4 {[%clk 0:00:03]}
44... d3 {[%clk 0:01:48.8]} 45. h5 {[%clk 0:00:00.9]} 45... Kd4 {[%clk
0:01:47.9]} 0-1

[Event "Live Chess"]
[Site "Chess.com"]
[Date "2023.05.20"]
[Round "-"]
[White "PureMellowPlan"]
[Black "Garyaaa"]
[Result "0-1"]
[WhiteElo "603"]
[BlackElo "972"]
[TimeControl "300"]
[EndTime "9:25:04 PDT"]
[Termination "Garyaaa won by resignation"]

1. e4 {[%clk 0:04:57.8]} 1... c6 {[%clk 0:04:58]} 2. d4 {[%clk 0:04:56.2]} 2...
d5 {[%clk 0:04:56]} 3. exd5 {[%clk 0:04:55.3]} 3... cxd5 {[%clk 0:04:54.3]} 4.
Nc3 {[%clk 0:04:54.5]} 4... Nc6 {[%clk 0:04:52.6]} 5. Nf3 {[%clk 0:04:54]} 5...
Nf6 {[%clk 0:04:51.1]} 6. Bb5 {[%clk 0:04:52.4]} 6... a6 {[%clk 0:04:48.2]} 7.
Bxc6+ {[%clk 0:04:51.5]} 7... bxc6 {[%clk 0:04:47.1]} 8. Kf1 {[%clk 0:04:50.6]}
8... g6 {[%clk 0:04:38.6]} 9. g3 {[%clk 0:04:49.9]} 9... Bg7 {[%clk 0:04:37.2]}
10. Kg2 {[%clk 0:04:49]} 10... O-O {[%clk 0:04:34.4]} 11. Re1 {[%clk 0:04:46.6]}
11... Bg4 {[%clk 0:04:30.2]} 12. Kg1 {[%clk 0:04:44.1]} 12... Qd7 {[%clk
0:04:14.6]} 13. Bf4 {[%clk 0:04:34.3]} 13... Nh5 {[%clk 0:04:09.8]} 14. Qd2
{[%clk 0:04:29.5]} 14... Nxf4 {[%clk 0:04:06.5]} 15. Qxf4 {[%clk 0:04:28.1]}
15... Rab8 {[%clk 0:03:58.3]} 16. b3 {[%clk 0:04:25.4]} 16... e6 {[%clk
0:03:46.7]} 17. Ne5 {[%clk 0:04:23.6]} 17... Qe7 {[%clk 0:03:39.6]} 18. Nxg4
{[%clk 0:04:18.9]} 18... Rb4 {[%clk 0:03:25.4]} 19. Nh6+ {[%clk 0:04:16.2]}
19... Bxh6 {[%clk 0:03:22.5]} 20. Qxh6 {[%clk 0:04:14.7]} 20... Rxd4 {[%clk
0:03:21]} 21. Re3 {[%clk 0:04:12.7]} 21... Rd2 {[%clk 0:03:19.1]} 22. g4 {[%clk
0:04:11.4]} 22... Rxc2 {[%clk 0:03:10.6]} 23. Rh3 {[%clk 0:04:10.1]} 23... f5
{[%clk 0:03:04.4]} 24. gxf5 {[%clk 0:04:06.2]} 24... Rxf5 {[%clk 0:02:59.7]} 25.
Qe3 {[%clk 0:03:59.9]} 25... Rfxf2 {[%clk 0:02:48.8]} 26. Rf3 {[%clk 0:03:54.7]}
26... Rxf3 {[%clk 0:02:44.2]} 27. Qxf3 {[%clk 0:03:51.7]} 27... Qg5+ {[%clk
0:02:42.8]} 28. Kf1 {[%clk 0:03:49.3]} 28... Rxh2 {[%clk 0:02:34.9]} 29. Ne2
{[%clk 0:03:45.6]} 29... Rh4 {[%clk 0:02:24.1]} 30. Kf2 {[%clk 0:03:36.5]} 30...
e5 {[%clk 0:02:17.9]} 31. Rg1 {[%clk 0:03:32.8]} 31... Rh2+ {[%clk 0:02:11.8]}
32. Rg2 {[%clk 0:03:28.7]} 32... e4 {[%clk 0:01:57.9]} 33. Qf4 {[%clk
0:03:17.9]} 33... Qxg2+ {[%clk 0:01:54.6]} 34. Ke3 {[%clk 0:03:14.1]} 34...
Qxe2+ {[%clk 0:01:52.2]} 0-1

[Event "Live Chess"]
[Site "Chess.com"]
[Date "2023.05.20"]
[Round "-"]
[White "BMT6"]
[Black "SupremeTactician"]
[Result "0-1"]
[WhiteElo "584"]
[BlackElo "2403"]
[TimeControl "300"]
[EndTime "9:25:04 PDT"]
[Termination "SupremeTactician won by checkmate"]

1. e4 {[%clk 0:04:59.3]} 1... e5 {[%clk 0:04:59.1]} 2. Nf3 {[%clk 0:04:57.5]}
2... Nc6 {[%clk 0:04:58.7]} 3. Nc3 {[%clk 0:04:52.5]} 3... Nf6 {[%clk 0:04:57]}
4. Bc4 {[%clk 0:04:51.2]} 4... Bc5 {[%clk 0:04:55.7]} 5. Ng5 {[%clk 0:04:49.7]}
5... O-O {[%clk 0:04:54.4]} 6. Bxf7+ {[%clk 0:04:47.8]} 6... Rxf7 {[%clk
0:04:54.3]} 7. Nxf7 {[%clk 0:04:46.5]} 7... Kxf7 {[%clk 0:04:54.2]} 8. Nd5
{[%clk 0:04:41.3]} 8... d6 {[%clk 0:04:38.8]} 9. Nxf6 {[%clk 0:04:37.5]} 9...
Qxf6 {[%clk 0:04:38.7]} 10. Qf3 {[%clk 0:04:33.9]} 10... Qxf3 {[%clk 0:04:37.2]}
11. gxf3 {[%clk 0:04:31.7]} 11... Nd4 {[%clk 0:04:37.1]} 12. O-O {[%clk
0:04:16.4]} 12... Nxf3+ {[%clk 0:04:33]} 13. Kg2 {[%clk 0:04:14.8]} 13... Ng5
{[%clk 0:04:29.4]} 14. d3 {[%clk 0:04:13]} 14... Bh3+ {[%clk 0:04:28.3]} 15. Kg1
{[%clk 0:04:08.7]} 15... Nf3+ {[%clk 0:04:27.3]} 16. Kh1 {[%clk 0:04:05.7]}
16... Bxf1 {[%clk 0:04:27.2]} 17. Be3 {[%clk 0:03:57.5]} 17... Bxe3 {[%clk
0:04:26.1]} 18. fxe3 {[%clk 0:03:56.4]} 18... Bh3 {[%clk 0:04:26]} 19. d4 {[%clk
0:03:48.3]} 19... Ke6 {[%clk 0:04:24.6]} 20. d5+ {[%clk 0:03:46]} 20... Ke7
{[%clk 0:04:23.2]} 21. Rd1 {[%clk 0:03:36.6]} 21... Rf8 {[%clk 0:04:21.9]} 22.
Rd2 {[%clk 0:03:34.2]} 22... Nxd2 {[%clk 0:04:20.3]} 23. Kg1 {[%clk 0:03:31.9]}
23... Rf1# {[%clk 0:04:20.2]} 0-1

[Event "Live Chess"]
[Site "Chess.com"]
[Date "2023.05.20"]
[Round "-"]
[White "JanMur7"]
[Black "ossie57"]
[Result "1-0"]
[WhiteElo "1976"]
[BlackElo "1854"]
[TimeControl "300"]
[EndTime "9:25:05 PDT"]
[Termination "JanMur7 won by checkmate"]

1. e4 {[%clk 0:04:57.2]} 1... d6 {[%clk 0:04:56.5]} 2. d4 {[%clk 0:04:56]} 2...
Nf6 {[%clk 0:04:55.8]} 3. Nc3 {[%clk 0:04:53.7]} 3... Nbd7 {[%clk 0:04:55.2]} 4.
f4 {[%clk 0:04:50.7]} 4... e5 {[%clk 0:04:54.1]} 5. Nf3 {[%clk 0:04:43.8]} 5...
exd4 {[%clk 0:04:49.2]} 6. Qxd4 {[%clk 0:04:38]} 6... Be7 {[%clk 0:04:47.9]} 7.
Bc4 {[%clk 0:04:32.4]} 7... O-O {[%clk 0:04:46.8]} 8. Be3 {[%clk 0:04:25.8]}
8... c6 {[%clk 0:04:44.8]} 9. O-O-O {[%clk 0:04:20.8]} 9... b5 {[%clk
0:04:43.6]} 10. Bb3 {[%clk 0:04:18.9]} 10... a5 {[%clk 0:04:42.8]} 11. a4 {[%clk
0:04:12.2]} 11... c5 {[%clk 0:04:40.1]} 12. Qd2 {[%clk 0:03:58.3]} 12... c4
{[%clk 0:04:38.8]} 13. e5 {[%clk 0:03:46.6]} 13... dxe5 {[%clk 0:04:24.8]} 14.
fxe5 {[%clk 0:03:40.3]} 14... Ng4 {[%clk 0:04:23.4]} 15. Ba2 {[%clk 0:03:33.1]}
15... Nxe3 {[%clk 0:04:16.4]} 16. Qxe3 {[%clk 0:03:29.4]} 16... b4 {[%clk
0:04:13.8]} 17. Nd5 {[%clk 0:03:22.5]} 17... Bc5 {[%clk 0:04:01.6]} 18. Qe4
{[%clk 0:03:14.4]} 18... Rb8 {[%clk 0:03:10.3]} 19. Bxc4 {[%clk 0:02:54.2]}
19... h6 {[%clk 0:02:34.5]} 20. e6 {[%clk 0:02:26.4]} 20... Nf6 {[%clk
0:02:27.8]} 21. exf7+ {[%clk 0:02:08.2]} 21... Kh8 {[%clk 0:02:15.8]} 22. Nxf6
{[%clk 0:02:06.5]} 22... Qxf6 {[%clk 0:02:14.9]} 23. Qe5 {[%clk 0:01:05.9]}
23... Bg4 {[%clk 0:01:50]} 24. Qxc5 {[%clk 0:00:55.7]} 24... Qf4+ {[%clk
0:01:45.2]} 25. Kb1 {[%clk 0:00:50.4]} 25... Rbc8 {[%clk 0:01:44.2]} 26. Ne5
{[%clk 0:00:26.9]} 26... Qxc4 {[%clk 0:01:37.6]} 27. Ng6+ {[%clk 0:00:18.6]}
27... Kh7 {[%clk 0:01:36.2]} 28. Nxf8+ {[%clk 0:00:18]} 28... Kh8 {[%clk
0:01:30.1]} 29. Ng6+ {[%clk 0:00:16.3]} 29... Kh7 {[%clk 0:01:28]} 30. f8=N+
{[%clk 0:00:14.3]} 30... Kg8 {[%clk 0:01:23.8]} 31. Qxc4+ {[%clk 0:00:12.5]}
31... Rxc4 {[%clk 0:01:22.7]} 32. Rd8 {[%clk 0:00:12.4]} 32... Kf7 {[%clk
0:01:22]} 33. Rf1+ {[%clk 0:00:10.9]} 33... Kg8 {[%clk 0:01:16.9]} 34. Ne6+
{[%clk 0:00:10]} 34... Kh7 {[%clk 0:01:15.5]} 35. Nef4 {[%clk 0:00:06.9]} 35...
Bf5 {[%clk 0:01:14.2]} 36. Rh8# {[%clk 0:00:05.5]} 1-0